fUSD/lending_fUSD_20260208
["ID","MTS","AMOUNT","RATE_DAILY","PERIOD"]
[404786095,1770555044444,-151.0,0.00025888,2]
[404786096,1770555044453,-151.0,0.00025888,2]
[404786097,1770555044463,-429.0,0.00025913,2]
[404786098,1770555044471,-280.03725112,0.00025935,2]
[404786099,1770555044480,-365.0106132,0.00025943,2]
[404786100,1770555044489,-429.0,0.00025968,2]
[404786101,1770555044498,-290.39862941,0.0002599,2]
[404786102,1770555044508,-168.0,0.00025997,2]
[404786103,1770555044517,-429.0,0.00026022,2]
[404786104,1770555044526,-301.1433787,0.00026045,2]
[404786105,1770555044535,-429.0,0.00026077,2]
[404786106,1770555044544,-420.0,0.00026131,2]
[404786107,1770555044554,-1026.0,0.00026132,2]
[404786108,1770555044563,-429.0,0.00026132,2]
[404786109,1770555044572,-572.85290524,0.00026157,2]
[404786110,1770555044581,-429.0,0.00026187,2]
[404786111,1770555044590,-2000.0,0.000262,2]
[404786112,1770555044599,-2804.0,0.000262,2]
[404786113,1770555044608,-273.917041,0.00026229,2]
[404786115,1770555044617,-273.917041,0.00026229,2]
[404786117,1770555044626,-273.917041,0.00026229,2]
[404786119,1770555044635,-273.917041,0.00026229,2]
[404786120,1770555044645,-151.0,0.00026229,2]
[404786121,1770555044656,-429.0,0.00026242,2]
[404786122,1770555044665,-1026.0,0.00026244,7]
[404786123,1770555044674,-701.52,0.00026285,2]
[404786124,1770555044683,-273.0,0.00026292,2]
[404786125,1770555044691,-429.0,0.00026296,2]
[404786126,1770555044700,-1000.0,0.00026303,2]
[404786127,1770555044709,-151.0,0.00026314,2]
[404786128,1770555044720,-151.0,0.00026314,2]
[404786129,1770555044729,-429.0,0.00026351,2]
[404786130,1770555044738,-151.0,0.00026354,2]
[404786131,1770555044748,-151.0,0.00026354,2]
[404786132,1770555044757,-151.0,0.00026403,2]
[404786133,1770555044767,-151.0,0.00026403,2]
[404786134,1770555044776,-195.506911,0.00026403,2]
[404786135,1770555044785,-195.506911,0.00026403,2]
[404786136,1770555044794,-195.506911,0.00026403,2]
[404786137,1770555044803,-195.506911,0.00026403,2]
[404786138,1770555044812,-151.0,0.00026403,2]
[404786139,1770555044821,-151.0,0.00026403,2]
[404786140,1770555044831,-151.0,0.00026403,2]
[404786141,1770555044839,-820.743582,0.00026403,2]
[404786142,1770555044849,-820.743582,0.00026403,2]
[404786143,1770555044859,-820.743582,0.00026403,2]
[404786144,1770555044869,-820.743582,0.00026403,2]
[404786145,1770555044878,-2500.0,0.00026403,2]
[404786146,1770555044887,-429.0,0.00026406,2]
[404786147,1770555044897,-1063.60277353,0.00026409,10]
[404786148,1770555044906,-429.0,0.00026461,2]
[404786149,1770555044915,-18225.80206493,0.00026503,2]
[404786151,1770555045519,-7083.0,0.00026503,2]
[404786301,1770555125835,500.0,0.00035616,30]
[404786310,1770555129280,500.0,0.00035616,30]
[404786328,1770555136416,500.0,0.00035616,30]
[404786334,1770555150000,702.0,0.00035616,30]
[404786341,1770555274729,150.4,0.00030137,30]
[404786342,1770555275057,150.4,0.00035274,30]
[404786343,1770555278359,407.0,0.00035616,30]
[404786453,1770555577552,166.66,0.00024208,30]
[404786454,1770555577783,166.66,0.00024718,30]
[404786455,1770555578011,166.66,0.00025227,30]
[404786456,1770555578210,166.66,0.00025737,30]
[404786457,1770555578409,166.66,0.00026247,30]
[404786458,1770555578602,166.66,0.00026756,30]
[404786460,1770555644702,50000.0,0.0001999,2]
[404786461,1770555644729,50000.0,0.0001999,2]
[404786504,1770555711816,500.0,0.00035616,30]
[404786509,1770555732762,500.0,0.00035616,30]
[404786513,1770555771510,506.0,0.00035616,30]
[404786516,1770555888940,1705.51666705,0.00035,30]
[404786549,1770555999381,250.0,0.00015,2]
[404786550,1770556000471,300.0,0.00017,2]
[404786551,1770556001580,350.0,0.00019,2]
[404786552,1770556006153,2069.06219914,0.00035616,30]
[404786553,1770556147095,-582.10884,0.00019989,2]
[404786554,1770556147117,-300.0,0.00019989,2]
[404786555,1770556147140,-4379.1803256,0.0001999,2]
[404786567,1770556231543,-300.0,0.00019989,2]
[404786568,1770556231553,-28903.74418794,0.0001999,2]
[404786569,1770556231597,-404.53844161,0.0001999,2]
[404786570,1770556231610,-612.35383556,0.0001999,2]
[404786571,1770556231711,-462.11065713,0.0001999,2]
[404786572,1770556231724,-458.48660315,0.0001999,2]
[404786573,1770556231735,-2774.94,0.0001999,2]
[404786583,1770556237702,-13513.84760649,0.0001999,2]
[404786746,1770556239698,-455.41059858,0.0001999,2]
[404786752,1770556239756,-264.61051764,0.0001999,2]
[404786754,1770556239768,-2848.47837779,0.0001999,2]
[404786756,1770556239780,-362.7995925,0.0001999,2]
[404787024,1770556243556,-355.54,0.0001999,2]
[404787037,1770556245544,-377.29908478,0.0001999,2]
[404787038,1770556245655,-635.52648625,0.0001999,2]
[404787047,1770556432242,150.0,0.000356,48]
[404787050,1770557039218,571.03,0.000356,30]
[404787062,1770557211465,1889.17289129,0.000162,5]
[404787063,1770557230646,513.93,0.000356,30]
[404787080,1770557421624,462.53,0.000356,30]
[404787091,1770557431794,-940.0,0.0001999,2]
[404787092,1770557431806,-2627.02518969,0.0001999,2]
[404787093,1770557431815,-256.43567798,0.000209,2]
[404787094,1770557431824,-300.0,0.00020999,2]
[404787095,1770557431833,-772.0,0.00020999,2]
[404787096,1770557431842,-300.0,0.00020999,2]
[404787097,1770557431851,-400.0,0.00021,2]
[404787098,1770557431861,-2061.17876174,0.00021,2]
[404787099,1770557431905,-12869.05069575,0.00021,2]
[404787100,1770557431915,-182.63,0.00021169,2]
[404787101,1770557431924,-167.0,0.00022,2]
[404787102,1770557431933,-160.0,0.00022324,2]
[404787103,1770557431943,-420.0,0.00022842,2]
[404787104,1770557431952,-323.0,0.00022877,2]
[404787105,1770557431962,-256.43567797,0.00022921,2]
[404787106,1770557431971,-450.0,0.00023,2]
[404787107,1770557431980,-416.0,0.00023,2]
[404787108,1770557431989,-160.0,0.00023,2]
[404787109,1770557431997,-600.0,0.0002315,2]
[404787110,1770557432007,-165.54,0.00023155,2]
[404787111,1770557432016,-216.78,0.0002403,2]
[404787112,1770557432026,-541.04,0.00024101,2]
[404787113,1770557432036,-5000.0,0.00024148,2]
[404787114,1770557432045,-1000.0,0.00024222,2]
[404787115,1770557432055,-150.0,0.00024289,2]
[404787116,1770557432065,-561.22,0.00024362,2]
[404787117,1770557432074,-150.0,0.00024561,2]
[404787118,1770557432083,-663.66,0.0002459,2]
[404787119,1770557432092,-361.32,0.00024615,2]
[404787120,1770557432109,-1655.15,0.00024628,2]
[404787121,1770557432120,-528.39,0.00024633,2]
[404787122,1770557432135,-234.12,0.00024658,2]
[404787123,1770557432149,-528.39,0.00024678,2]
[404787124,1770557432158,-151.0,0.0002468,2]
[404787125,1770557432168,-151.0,0.0002468,2]
[404787126,1770557432177,-151.0,0.0002468,2]
[404787127,1770557432186,-151.0,0.0002468,2]
[404787128,1770557432196,-151.0,0.0002468,2]
[404787129,1770557432205,-151.0,0.0002468,2]
[404787130,1770557432214,-151.0,0.0002468,2]
[404787131,1770557432224,-151.0,0.0002468,2]
[404787132,1770557432233,-193.71617672,0.0002468,2]
[404787133,1770557432242,-9888.93,0.00024695,2]
[404787134,1770557432254,-4960.40894956,0.00024695,2]
[404787135,1770557432269,-539.07428944,0.00024695,2]
[404787138,1770557437751,-988.23777312,0.00024695,2]
[404787139,1770557437808,-620.7508886,0.00024695,2]
[404787140,1770557437820,-11204.93809928,0.00024695,2]
[404787141,1770557437831,-184.1148583,0.00024718,2]
[404787142,1770557437845,-150.0,0.00024718,2]
[404787143,1770557437855,-150.0,0.00024718,2]
[404787144,1770557437865,-150.0,0.00024718,2]
[404787145,1770557437880,-150.0,0.00024718,2]
[404787146,1770557437890,-150.0,0.00024718,2]
[404787147,1770557437899,-150.0,0.00024718,2]
[404787148,1770557437908,-429.0,0.00024718,2]
[404787149,1770557437918,-500.0,0.00024718,2]
[404787150,1770557437927,-528.39,0.00024723,2]
[404787151,1770557437937,-528.39,0.00024769,2]
[404787152,1770557437947,-150.0,0.00024773,2]
[404787153,1770557437956,-150.0,0.00024773,2]
[404787154,1770557437966,-150.0,0.00024773,2]
[404787155,1770557437977,-150.0,0.00024773,2]
[404787156,1770557437987,-429.0,0.00024773,2]
[404787157,1770557437997,-528.39,0.00024814,2]
[404787158,1770557438007,-150.0,0.00024828,2]
[404787159,1770557438016,-150.0,0.00024828,2]
[404787160,1770557438028,-429.0,0.00024828,2]
[404787161,1770557438037,-138.28759243,0.00024847,2]
[404787163,1770557438052,-448.71240757,0.00024847,2]
[404787164,1770557438062,-166.66,0.00024848,2]
[404787165,1770557438072,-432.75010274,0.0002486,2]
[404787166,1770557438086,-95.63989726,0.0002486,2]
[404787167,1770557438095,-150.0,0.00024882,2]
[404787169,1770557438104,-150.0,0.00024882,2]
[404787171,1770557438114,-429.0,0.00024882,2]
[404787173,1770557438123,-364.10632765,0.00024905,2]
[404787175,1770557438134,-164.28367235,0.00024905,2]
[404787177,1770557438143,-150.0,0.00024937,2]
[404787179,1770557438153,-150.0,0.00024937,2]
[404787180,1770557438163,-429.0,0.00024937,2]
[404787181,1770557438172,-256.43567797,0.00024941,2]
[404787182,1770557438181,-200.18775997,0.0002495,2]
[404787183,1770557438201,-328.20224003,0.0002495,2]
[404787184,1770557438210,-119.59788781,0.00024976,2]
[404787185,1770557438222,-177.09211219,0.00024976,2]
[404787186,1770557438231,-500.0,0.00024992,2]
[404787187,1770557438240,-500.0,0.00024992,2]
[404787188,1770557438253,-500.0,0.00024992,2]
[404787189,1770557438262,-500.0,0.00024992,2]
[404787190,1770557438272,-500.0,0.00024992,2]
[404787191,1770557438282,-277.35679052,0.00024992,2]
[404787192,1770557438298,-500.0,0.00024992,2]
[404787193,1770557438308,-116.29352414,0.00024992,2]
[404787194,1770557438319,-383.70647586,0.00024992,2]
[404787195,1770557438329,-500.0,0.00024992,2]
[404787196,1770557438338,-500.0,0.00024992,2]
[404787197,1770557438348,-500.0,0.00024992,2]
[404787198,1770557438357,-500.0,0.00024992,2]
[404787199,1770557438366,-500.0,0.00024992,2]
[404787200,1770557438375,-500.0,0.00024992,2]
[404787201,1770557438385,-182.49139356,0.00024992,2]
[404787202,1770557438394,-209.40437684,0.00024992,2]
[404787203,1770557438403,-250.0,0.00024992,2]
[404787204,1770557438412,-250.0,0.00024992,2]
[404787205,1770557438422,-429.0,0.00024992,2]
[404787206,1770557438431,-500.0,0.00024992,2]
[404787207,1770557438441,-528.39,0.00024996,2]
[404787208,1770557438662,-500.0,0.00025,2]
[404787209,1770557438672,-193.0,0.00025,2]
[404787210,1770557438682,-528.39,0.00025041,2]
[404787211,1770557438692,-217.15233878,0.00025047,2]
[404787212,1770557438701,-429.0,0.00025047,2]
[404787213,1770557438710,-168.84295198,0.00025086,2]
[404787214,1770557439848,-359.54704802,0.00025086,2]
[404787215,1770557439858,-225.18697532,0.00025102,2]
[404787216,1770557439868,-429.0,0.00025102,2]
[404787217,1770557439877,-390.71167508,0.00025132,2]
[404787218,1770557439889,-137.67832492,0.00025132,2]
[404787219,1770557439898,-429.0,0.00025156,2]
[404787220,1770557439907,-233.51889341,0.00025157,2]
[404787221,1770557439916,-16.58979983,0.00025177,2]
[404787222,1770557440016,-511.80020017,0.00025177,2]
[404787223,1770557440026,-1000.0,0.0002518,2]
[404787224,1770557440035,-429.0,0.00025211,2]
[404787225,1770557440044,-242.15909246,0.00025212,2]
[404787226,1770557440054,-528.39,0.00025223,2]
[404787227,1770557440063,-429.0,0.00025266,2]
[404787228,1770557440072,-572.85290524,0.00025266,2]
[404787229,1770557440082,-251.11897888,0.00025267,2]
[404787230,1770557440091,-528.39,0.00025268,2]
[404787231,1770557440101,-528.39,0.00025313,2]
[404787232,1770557440110,-429.0,0.00025321,2]
[404787233,1770557440120,-260.4103811,0.00025322,2]
[404787234,1770557440129,-528.39,0.00025359,2]
[404787235,1770557440138,-429.0,0.00025376,2]
[404787236,1770557440147,-270.0455652,0.00025377,2]
[404787237,1770557440156,-200.0,0.00025379,2]
[404787238,1770557440165,-528.39,0.00025404,2]
[404787239,1770557440175,-429.0,0.0002543,2]
[404787240,1770557440184,-280.03725112,0.00025432,2]
[404787241,1770557440193,-151.0,0.00025432,2]
[404787242,1770557440202,-151.0,0.00025432,2]
[404787243,1770557440212,-151.0,0.00025432,2]
[404787244,1770557440222,-151.0,0.00025449,2]
[404787245,1770557440231,-820.743582,0.00025449,2]
[404787246,1770557440240,-820.743582,0.00025449,2]
[404787247,1770557440249,-820.743582,0.00025449,2]
[404787249,1770557440258,-820.743582,0.00025449,2]
[404787250,1770557440267,-528.39,0.00025449,2]
[404787252,1770557440276,-429.0,0.00025485,2]
[404787254,1770557440285,-290.39862941,0.00025487,2]
[404787256,1770557440295,-528.39,0.00025495,2]
[404787257,1770557440305,-175.0,0.00025516,2]
[404787259,1770557440314,-429.0,0.0002554,2]
[404787261,1770557440324,-301.1433787,0.00025542,2]
[404787263,1770557440335,-168.0,0.00025576,7]
[404787265,1770557440345,-561.22,0.0002558,2]
[404787267,1770557440354,-429.0,0.00025595,2]
[404787268,1770557440363,-429.0,0.0002565,2]
[404787270,1770557440373,-166.66,0.00025668,2]
[404787272,1770557440382,-168.0,0.00025678,2]
[404787274,1770557440393,-1000.0,0.00025754,2]
[404787275,1770557440402,-1000.0,0.000258,2]
[404787277,1770557440411,-165.8537,0.000258,2]
[404787278,1770557440421,-487.0,0.000259,2]
[404787279,1770557440430,-670.71,0.000259,2]
[404787280,1770557440440,-941.53620476,0.0002602,2]
[404787281,1770557440450,-1000.0,0.00026028,2]
[404787282,1770557440461,-168.0,0.0002616,7]
[404787283,1770557440475,-151.0,0.0002624,2]
[404787284,1770557440487,-151.0,0.0002624,2]
[404787285,1770557440497,-151.0,0.0002624,2]
[404787286,1770557440510,-151.0,0.0002624,2]
[404787287,1770557440526,-151.0,0.0002624,2]
[404787288,1770557440535,-151.0,0.0002624,2]
[404787289,1770557440546,-151.0,0.00026283,2]
[404787290,1770557440555,-151.0,0.00026283,2]
[404787291,1770557440566,-195.506911,0.00026283,2]
[404787292,1770557440576,-195.506911,0.00026283,2]
[404787293,1770557440596,-195.506911,0.00026283,2]
[404787294,1770557440606,-195.506911,0.00026283,2]
[404787295,1770557440615,-151.0,0.00026283,2]
[404787296,1770557440624,-151.0,0.00026283,2]
[404787297,1770557440634,-820.743582,0.00026283,2]
[404787298,1770557440643,-820.743582,0.00026283,2]
[404787299,1770557440652,-820.743582,0.00026283,2]
[404787300,1770557440661,-820.743582,0.00026283,2]
[404787301,1770557440671,-168.0,0.0002629,2]
[404787302,1770557440680,-200.0,0.00026291,2]
[404787303,1770557440689,-1063.60277353,0.00026299,10]
[404787304,1770557440698,-155.0,0.00026299,2]
[404787305,1770557440708,-151.0,0.000263,2]
[404787306,1770557440717,-1000.0,0.00026302,2]
[404787307,1770557440727,-9964.0,0.00026382,2]
[404787308,1770557440736,-504.11677041,0.00026382,2]
[404787309,1770557440746,-154.20746345,0.00026382,2]
[404787310,1770557440755,-151.0,0.00026383,2]
[404787311,1770557440764,-151.0,0.00026383,2]
[404787312,1770557440773,-273.917041,0.00026383,2]
[404787313,1770557440783,-273.917041,0.00026383,2]
[404787314,1770557440792,-273.917041,0.00026383,2]
[404787315,1770557440801,-273.917041,0.00026383,2]
[404787316,1770557440810,-151.0,0.00026383,2]
[404787317,1770557440819,-151.0,0.00026383,2]
[404787318,1770557440830,-168.0,0.00026386,2]
[404787319,1770557440839,-260.43751861,0.00026394,2]
[404787320,1770557440848,-175.0,0.00026398,7]
[404787321,1770557440857,-168.0,0.0002642,2]
[404787322,1770557440867,-168.0,0.00026422,2]
[404787323,1770557440877,-168.0,0.00026449,2]
[404787324,1770557440886,-166.66,0.00026488,2]
[404787325,1770557440895,-2000.0,0.000265,2]
[404787326,1770557440904,-151.0,0.000265,7]
[404787327,1770557440914,-2000.0,0.00026503,2]
[404787328,1770557440923,-2000.0,0.00026503,2]
[404787329,1770557440933,-2000.0,0.00026503,2]
[404787330,1770557440942,-2000.0,0.00026503,2]
[404787331,1770557440952,-2000.0,0.00026503,2]
[404787332,1770557440961,-2000.0,0.00026503,2]
[404787333,1770557440970,-195.506911,0.00026503,2]
[404787334,1770557440979,-195.506911,0.00026503,2]
[404787335,1770557440989,-195.506911,0.00026503,2]
[404787336,1770557440998,-195.506911,0.00026503,2]
[404787337,1770557441007,-820.743582,0.00026503,2]
[404787338,1770557441016,-820.743582,0.00026503,2]
[404787339,1770557441025,-820.743582,0.00026503,2]
[404787340,1770557441035,-820.743582,0.00026503,2]
[404787341,1770557441043,-1000.0,0.00026576,2]
[404787342,1770557441052,-251.2501136,0.00026599,2]
[404787343,1770557441062,-2804.0,0.000266,2]
[404787344,1770557441071,-168.0,0.00026601,2]
[404787345,1770557441080,-168.0,0.00026603,2]
[404787346,1770557441089,-168.0,0.00026607,7]
[404787347,1770557441099,-168.0,0.00026608,2]
[404787348,1770557441108,-175.0,0.00026628,2]
[404787349,1770557441118,-273.917041,0.00026645,2]
[404787350,1770557441127,-273.917041,0.00026645,2]
[404787351,1770557441140,-273.917041,0.00026645,2]
[404787352,1770557441149,-273.917041,0.00026645,2]
[404787353,1770557441159,-151.0,0.00026645,2]
[404787354,1770557441169,-168.0,0.00026645,7]
[404787355,1770557441178,-10082.43161734,0.00026666,2]
[404787356,1770557441187,-249.299876,0.00026666,2]
[404787357,1770557441196,-153.40053,0.00026667,2]
[404787358,1770557441205,-168.0,0.00026766,7]
[404787359,1770557441215,-561.22,0.00026798,2]
[404787360,1770557441224,-1000.0,0.0002685,2]
[404787361,1770557441235,-175.0,0.00026958,2]
[404787362,1770557441244,-500.82763036,0.00027,3]
[404787363,1770557441254,-550.0,0.00027,2]
[404787364,1770557441264,-200.0,0.00027,2]
[404787365,1770557441273,-823.0,0.00027028,2]
[404787366,1770557441283,-1000.0,0.00027124,2]
[404787367,1770557441292,-820.743582,0.00027124,2]
[404787368,1770557441302,-820.743582,0.00027124,2]
[404787369,1770557441311,-820.743582,0.00027124,2]
[404787370,1770557441320,-820.743582,0.00027124,2]
[404787371,1770557441329,-168.0,0.00027144,2]
[404787372,1770557441338,-168.0,0.0002718,2]
[404787373,1770557441348,-1000.0,0.0002725,2]
[404787374,1770557441358,-168.0,0.00027265,2]
[404787375,1770557441368,-166.66,0.00027309,2]
[404787376,1770557441377,-500.0,0.00027313,2]
[404787377,1770557441387,-500.0,0.00027314,2]
[404787378,1770557441396,-500.424752,0.00027315,2]
[404787379,1770557441405,-273.917041,0.00027336,2]
[404787380,1770557441415,-273.917041,0.00027336,2]
[404787381,1770557441424,-273.917041,0.00027336,2]
[404787382,1770557441434,-273.917041,0.00027336,2]
[404787383,1770557441447,-150.0,0.00027369,2]
[404787384,1770557441457,-20000.0,0.0002737,2]
[404787385,1770557441469,-195.506911,0.0002737,2]
[404787386,1770557441479,-195.506911,0.0002737,2]
[404787387,1770557441490,-195.506911,0.0002737,2]
[404787388,1770557441498,-195.506911,0.0002737,2]
[404787389,1770557441509,-820.743582,0.00027397,2]
[404787390,1770557441518,-820.743582,0.00027397,2]
[404787391,1770557441527,-820.743582,0.00027397,2]
[404787392,1770557441538,-820.743582,0.00027397,2]
[404787393,1770557441547,-500.0,0.00027397,2]
[404787394,1770557441556,-250.797544,0.00027397,2]
[404787395,1770557441566,-1000.0,0.00027397,20]
[404787396,1770557441576,-300.0,0.00027397,2]
[404787397,1770557441585,-1000.0,0.00027398,2]
[404787398,1770557441595,-175.0,0.00027518,7]
[404787399,1770557441604,-234.12,0.00027542,2]
[404787400,1770557441613,-168.0,0.00027601,7]
[404787401,1770557441623,-1000.0,0.00027672,2]
[404787402,1770557441632,-400.36832321,0.00027673,2]
[404787403,1770557441642,-2500.0,0.00027709,2]
[404787404,1770557441651,-1952.99407688,0.00027735,2]
[404787405,1770557441661,-168.0,0.00027782,7]
[404787406,1770557441670,-168.0,0.0002779,2]
[404787407,1770557441679,-150.505,0.00027809,2]
[404787408,1770557441688,-1272.0,0.00027809,2]
[404787409,1770557441697,-917.0,0.00027809,2]
[404787410,1770557441707,-1206.0,0.00027809,2]
[404787411,1770557441720,-2447.0,0.00027809,2]
[404787412,1770557441730,-629.944,0.00027809,2]
[404787413,1770557441739,-3255.0,0.00027809,2]
[404787414,1770557441750,-273.917041,0.00027809,7]
[404787415,1770557441759,-273.917041,0.00027809,7]
[404787416,1770557441768,-273.917041,0.00027809,7]
[404787417,1770557441778,-273.917041,0.00027809,7]
[404787418,1770557441787,-195.506911,0.00027809,7]
[404787419,1770557441796,-195.506911,0.00027809,7]
[404787420,1770557441806,-195.506911,0.00027809,7]
[404787421,1770557441816,-195.506911,0.00027809,7]
[404787422,1770557441826,-1000.0,0.00027945,2]
[404787423,1770557441836,-716.11388473,0.00028,2]
[404787424,1770557441845,-561.22,0.00028016,2]
[404787425,1770557441855,-166.66,0.00028129,2]
[404787426,1770557441865,-151.0,0.00028194,7]
[404787427,1770557441874,-1000.0,0.00028219,2]
[404787428,1770557441884,-195.506911,0.0002826,7]
[404787429,1770557441893,-195.506911,0.0002826,7]
[404787430,1770557441902,-195.506911,0.0002826,7]
[404787431,1770557441915,-195.506905,0.0002826,7]
[404787432,1770557441924,-1000.0,0.00028493,2]
[404787433,1770557441934,-151.0,0.00028535,7]
[404787434,1770557441944,-150.13,0.00028592,2]
[404787435,1770557441954,-150.0,0.00028592,2]
[404787436,1770557441964,-150.158,0.00028592,2]
[404787437,1770557441973,-150.0,0.00028592,2]
[404787438,1770557441983,-150.0,0.00028592,2]
[404787439,1770557441992,-150.0,0.00028592,2]
[404787440,1770557442002,-273.917041,0.000286,7]
[404787441,1770557442011,-273.917041,0.000286,7]
[404787442,1770557442021,-273.917041,0.000286,7]
[404787443,1770557442030,-273.917046,0.000286,7]
[404787444,1770557442039,-10082.43161732,0.000286,2]
[404787445,1770557442048,-1000.0,0.00028767,2]
[404787446,1770557442057,-600.0,0.00028775,2]
[404787447,1770557442067,-155.0,0.00028929,2]
[404787448,1770557442076,-166.66,0.00028949,2]
[404787449,1770557442087,-600.0,0.00029,2]
[404787450,1770557442097,-1000.0,0.00029041,2]
[404787451,1770557442107,-165.54,0.00029063,2]
[404787452,1770557442117,-278.0,0.00029138,12]
[404787453,1770557442127,-276.0,0.00029138,12]
[404787454,1770557442138,-561.22,0.00029234,2]
[404787455,1770557442147,-329.02,0.00029276,2]
[404787456,1770557442157,-1000.0,0.00029315,2]
[404787457,1770557442166,-943.0,0.00029401,2]
[404787458,1770557442175,-1000.0,0.00029589,2]
[404787459,1770557442185,-1000.0,0.00029863,2]
[404787460,1770557442195,-167.0,0.00029932,12]
[404787461,1770557442204,-165.0,0.00029932,12]
[404787462,1770557442214,-298.09,0.00029965,2]
[404787463,1770557442224,-314.0,0.0003,14]
[404787464,1770557442233,-200.0,0.0003,2]
[404787465,1770557442243,-1074.73779554,0.0003013,2]
[404787466,1770557442252,-8704.03826195,0.0003013,2]
[404787467,1770557442273,-871.66421602,0.0003013,2]
[404787468,1770557442284,-659.837395,0.0003013,2]
[404787469,1770557442303,-2145.66,0.0003013,2]
[404787475,1770557443556,-107.40255347,0.00025704,2]
[404787476,1770557444395,-321.59744653,0.00025704,2]
[404787477,1770557444406,-429.0,0.00025759,2]
[404787478,1770557444416,-429.0,0.00025814,2]
[404787479,1770557444426,-382.30379694,0.0003013,2]
[404787480,1770557444435,-2337.45790709,0.0003013,2]
[404787481,1770557444444,-151.0,0.00030137,7]
[404787482,1770557444453,-218.977161,0.00030137,14]
[404787483,1770557444462,-1000.0,0.00030137,7]
[404787484,1770557444475,-2169.10390619,0.00030178,2]
[404787485,1770557444484,-14047.86244178,0.000302,2]
[404787486,1770557444493,-124121.0,0.000302,2]
[404787487,1770557444502,-1000.0,0.00030278,2]
[404787488,1770557444511,-1004.24833384,0.00030399,15]
[404787489,1770557444520,-1000.0,0.00030411,7]
[404787490,1770557444530,-234.12,0.00030426,2]
[404787491,1770557444540,-501.62702372,0.00030473,5]
[404787492,1770557444549,-10082.43161732,0.00030534,2]
[404787493,1770557444558,-5529.0,0.000306,3]
[404787494,1770557444567,-1000.0,0.00030685,7]
[404787495,1770557444576,-150.0,0.00030809,2]
[404787496,1770557444587,-1272.0,0.00030809,2]
[404787497,1770557444596,-917.0,0.00030809,2]
[404787498,1770557444605,-1206.0,0.00030809,2]
[404787499,1770557444613,-2447.0,0.00030809,2]
[404787500,1770557444622,-616.0,0.00030809,2]
[404787501,1770557444631,-3255.0,0.00030809,2]
[404787502,1770557444640,-1610.21687302,0.0003084,2]
[404787503,1770557444649,-5529.0,0.000309,5]
[404787504,1770557444658,-1004.24833384,0.00030949,15]
[404787505,1770557444667,-307.06195353,0.00030949,10]
[404787506,1770557444676,-46588.64880239,0.0003095,2]
[404787507,1770557444684,-1000.0,0.00030959,7]
[404787508,1770557444695,-650.0,0.00031,2]
[404787509,1770557444704,-600.0,0.00031128,2]
[404787510,1770557444713,-1000.0,0.00031233,7]
[404787511,1770557444722,-1000.0,0.00031507,7]
[404787512,1770557444731,-155.0,0.00031559,2]
[404787513,1770557444740,-150.0,0.00031592,2]
[404787514,1770557444750,-150.0,0.00031592,2]
[404787515,1770557444759,-150.0,0.00031592,2]
[404787516,1770557444768,-150.0,0.00031592,2]
[404787517,1770557444778,-165.54,0.00031744,2]
[404787518,1770557444787,-1000.0,0.00031781,7]